bitfinex/quotes_SOLUSD_20250718
["timestamp","ask_amount","ask_price","bid_price","bid_amount"]
[1752856119246,119.64,178.16,178.15,7.83529043]
[1752856119556,52.33761616,178.16,178.15,0.03]
[1752856119707,60.18290659,178.16,178.15,0.03]
[1752856119908,53.03761616,178.16,178.15,0.03]
[1752856120599,60.18290659,178.16,178.15,0.03]
[1752856122124,53.03761616,178.16,178.15,0.03]
[1752856122327,52.33761616,178.16,178.15,0.03]
[1752856122531,53.03761616,178.16,178.15,0.03]
[1752856122714,23.09761616,178.16,178.15,0.03]
[1752856122908,53.03761616,178.16,178.15,0.03]
[1752856124507,60.18290659,178.16,178.15,0.03]
[1752856124703,53.03761616,178.16,178.15,0.03]
[1752856124917,60.18290659,178.16,178.15,0.03]
[1752856125817,30.24290659,178.16,178.15,0.03]
[1752856126023,60.16290659,178.16,178.15,0.03]
[1752856127031,60.14290659,178.16,178.15,0.03]
[1752856127250,23.09761616,178.16,178.15,0.03]
[1752856127412,52.29761616,178.16,178.15,0.03]
[1752856130846,16.78468397,178.16,178.15,7.17529043]
[1752856131144,46.64468397,178.16,178.15,7.17529043]
[1752856131361,52.25761616,178.16,178.15,0.03]
[1752856131912,52.97761616,178.16,178.15,0.03]
[1752856132111,52.25761616,178.16,178.15,0.03]
[1752856135047,52.97761616,178.16,178.15,0.03]
[1752856135230,60.12290659,178.16,178.15,0.03]
[1752856135746,52.21761616,178.16,178.15,0.03]
[1752856136046,52.93761616,178.16,178.15,0.03]
[1752856136848,52.21761616,178.16,178.15,0.03]
[1752856137228,52.93761616,178.16,178.15,0.03]
[1752856137631,23.11761616,178.16,178.15,0.03]
[1752856137828,52.91761616,178.16,178.15,0.03]
[1752856139839,23.11761616,178.16,178.15,0.03]
[1752856140023,52.91761616,178.16,178.15,0.03]
[1752856140419,23.11761616,178.16,178.15,0.03]
[1752856140756,46.58468397,178.16,178.15,7.84529043]
[1752856141046,16.78468397,178.16,178.15,7.84529043]
[1752856141248,22.39541168,178.23,178.15,7.84529043]
[1752856141443,0.06,178.24,178.22,7.14529043]
[1752856141749,0.06,178.24,178.23,7.14529043]
[1752856141934,46.64468397,178.24,178.23,7.14529043]
[1752856142348,16.78468397,178.23,178.22,0.67]
[1752856142535,16.78468397,178.23,178.22,7.14529043]
[1752856143250,16.78468397,178.23,178.22,7.81529043]
[1752856144649,16.78468397,178.23,178.22,0.67]
[1752856144853,16.78468397,178.22,178.21,7.14529043]
[1752856145155,16.78468397,178.22,178.2,7.14529043]
[1752856145334,29.8,178.21,178.19,7.14529043]
[1752856145537,46.58468397,178.2,178.16,0.67]
[1752856145726,16.78468397,178.19,178.17,7.14529043]
[1752856145927,29.8,178.18,178.17,0.67]
[1752856146129,29.8,178.18,178.17,7.81529043]
[1752856146850,29.8,178.18,178.17,13.42790759]
[1752856147231,16.84468397,178.24,178.17,13.42790759]
[1752856147452,136.28468397,178.23,178.22,7.14529043]
[1752856147657,136.28468397,178.23,178.22,7.81529043]
[1752856148864,119.5,178.23,178.22,13.42633296]
[1752856149231,0.06,178.24,178.22,13.42633296]
[1752856149432,0.06,178.24,178.23,7.81529043]
[1752856149752,0.06,178.25,178.23,7.81529043]
[1752856149936,1.01,178.26,178.24,7.81529043]
[1752856150137,1.01,178.26,178.25,7.81529043]
[1752856150353,1.01,178.26,178.25,13.4253886]
[1752856150546,0.06,178.29,178.25,27.45063404]
[1752856150746,0.06,178.29,178.28,14.29058086]
[1752856150942,0.06,178.29,178.28,7.14529043]
[1752856151137,0.06,178.29,178.28,7.81529043]
[1752856151338,0.06,178.29,178.28,14.96058086]
[1752856151671,0.06,178.33,178.28,14.96058086]
[1752856151672,0.06,178.33,178.28,22.98548086]
[1752856151866,29.8,178.39,178.32,7.14529043]
[1752856152037,29.84449187,178.43,178.38,7.14529043]
[1752856152352,29.84449187,178.43,178.29,33.14529043]
[1752856152353,22.39000511,178.41,178.36,0.67]
[1752856152558,16.78468397,178.41,178.38,7.14529043]
[1752856152756,16.78468397,178.42,178.39,7.81529043]
[1752856152971,16.78468397,178.39,178.36,5.60652747]
[1752856153158,16.78468397,178.39,178.38,7.14529043]
[1752856153362,29.8,178.4,178.38,7.14529043]
[1752856153572,46.58468397,178.4,178.39,7.14529043]
[1752856153862,46.58468397,178.4,178.38,7.14529043]
[1752856155038,46.58468397,178.4,178.36,0.67]
[1752856155340,46.58468397,178.4,178.38,7.14529043]
[1752856156145,46.58468397,178.4,178.39,7.81529043]
[1752856156466,16.78468397,178.44,178.4,5.60538116]
[1752856156773,16.78468397,178.44,178.43,7.14529043]
[1752856156929,89.7,178.48,178.43,7.81529043]
[1752856157134,92.5275624,178.52,178.47,7.14529043]
[1752856157351,16.78468397,178.5,178.48,7.14529043]
[1752856157746,16.78468397,178.48,178.43,0.67]
[1752856157947,29.78,178.47,178.45,7.14529043]
[1752856158250,29.78,178.48,178.46,7.81529043]
[1752856158563,29.78,178.48,178.47,7.81529043]
[1752856158878,29.78,178.49,178.47,7.81529043]
[1752856159048,29.78,178.49,178.44,0.67]
[1752856159250,17.46468397,178.48,178.44,7.14529043]
[1752856159462,16.78468397,178.47,178.44,7.14529043]
[1752856159773,29.78,178.46,178.44,7.81529043]
[1752856159949,16.78468397,178.45,178.38,5.60596484]
[1752856160154,29.76,178.44,178.39,0.67]
[1752856160372,29.76,178.44,178.41,7.14529043]
[1752856160671,35.36430698,178.44,178.41,7.14529043]
[1752856160864,16.78468397,178.43,178.39,7.81529043]
[1752856161171,29.76,178.42,178.4,7.14529043]
[1752856161951,29.76,178.42,178.4,0.67]
[1752856162155,29.76,178.42,178.41,7.14529043]
[1752856162461,29.76,178.42,178.35,0.67]
[1752856162462,22.38995455,178.41,178.35,0.67]
[1752856162774,29.76,178.4,178.37,7.14529043]
[1752856162962,29.76,178.4,178.37,12.28736061]
[1752856164052,29.76,178.4,178.38,11.61736061]
[1752856165049,29.76,178.4,178.37,0.67]
[1752856165249,29.76,178.4,178.38,11.61736061]
[1752856165472,35.36543626,178.4,178.38,11.61736061]
[1752856165771,36.04543626,178.4,178.36,11.61736061]
[1752856166072,17.46468397,178.39,178.33,0.67]
[1752856166270,16.78468397,178.37,178.31,7.2251]
[1752856166486,29.76,178.36,178.33,11.61736061]
[1752856166995,16.78468397,178.35,178.31,7.2251]
[1752856167148,16.78468397,178.35,178.32,11.61736061]
[1752856167149,29.76,178.34,178.32,11.61736061]
[1752856167350,29.76,178.34,178.32,12.28736061]
[1752856167565,29.76,178.34,178.32,11.61736061]
[1752856167776,29.76,178.34,178.32,12.28736061]
[1752856168873,29.76,178.34,178.32,0.67]
[1752856169189,29.76,178.34,178.32,11.61736061]
[1752856169471,29.76,178.34,178.32,12.28736061]
[1752856170179,29.76,178.34,178.32,11.61736061]
[1752856170382,35.36731402,178.34,178.32,11.61736061]
[1752856170748,36.04731402,178.34,178.31,11.61736061]
[1752856170958,29.08204458,178.33,178.26,6.7483]
[1752856171153,16.78468397,178.31,178.28,11.61736061]
[1752856171373,29.76,178.3,178.28,11.61736061]
[1752856171676,29.76,178.3,178.29,11.61736061]
[1752856172262,90.38,178.37,178.29,12.28736061]
[1752856172464,46.54468397,178.36,178.3,0.67]
[1752856172674,16.78468397,178.34,178.31,11.61736061]
[1752856172868,29.76,178.33,178.31,11.61736061]
[1752856173066,29.76,178.33,178.31,12.28736061]
[1752856173368,29.76,178.33,178.32,11.61736061]
[1752856173567,29.76,178.33,178.32,0.67]
[1752856173788,29.76,178.33,178.32,11.61736061]
[1752856174084,29.76,178.33,178.31,11.61736061]
[1752856174292,22.39163659,178.35,178.31,11.61736061]
[1752856174486,23.07163659,178.35,178.31,11.61736061]
[1752856174687,47.22468397,178.34,178.3,11.61736061]
[1752856175469,47.22468397,178.34,178.31,11.61736061]
[1752856175671,90.38,178.37,178.32,11.61736061]
[1752856175869,16.78468397,178.39,178.36,11.61736061]
[1752856176077,29.76,178.38,178.36,11.61736061]
[1752856176887,17.46468397,178.37,178.34,11.61736061]
[1752856177095,17.46468397,178.37,178.27,19.63314073]
[1752856177096,29.76,178.36,178.35,11.61736061]
[1752856177573,29.76,178.36,178.27,19.63314073]
[1752856177574,16.78468397,178.35,178.31,0.67]
[1752856177911,29.76,178.34,178.32,0.67]
[1752856178071,29.76,178.34,178.33,12.28736061]
[1752856178602,29.76,178.36,178.33,12.28736061]
[1752856178774,29.76,178.36,178.35,11.61736061]
[1752856179088,29.76,178.36,178.35,12.28736061]
[1752856179468,29.76,178.36,178.35,0.67]
[1752856179671,16.78468397,178.33,178.27,0.67]
[1752856179981,29.76,178.32,178.29,11.61736061]
[1752856180188,29.76,178.32,178.26,11.68798086]
[1752856180189,89.7,178.37,178.31,11.61736061]
[1752856180380,16.78468397,178.37,178.3,0.67]
[1752856180587,16.78468397,178.35,178.31,11.61736061]
[1752856180874,131.07736061,178.36,178.3,0.67]
[1752856180875,16.78468397,178.33,178.32,11.61736061]
[1752856181268,29.76,178.34,178.32,11.61736061]
[1752856181768,29.76,178.34,178.3,0.67]
[1752856181984,16.78468397,178.34,178.33,11.61736061]
[1752856182381,89.7,178.36,178.33,11.61736061]
[1752856182579,29.26,178.35,178.34,11.61736061]
[1752856182886,29.94,178.35,178.32,11.61736061]
[1752856183093,29.94,178.35,178.32,7.13315754]
[1752856183690,16.78468397,178.34,178.32,7.13315754]
[1752856183983,29.76,178.33,178.29,0.03]
[1752856184194,30.44,178.33,178.3,7.13315754]
[1752856184669,29.76,178.33,178.3,7.13315754]
[1752856184869,46.54468397,178.33,178.32,7.13315754]
[1752856185273,46.54468397,178.33,178.31,7.13315754]
[1752856185793,16.78468397,178.33,178.31,7.13315754]
[1752856186170,29.76,178.32,178.31,7.13315754]
[1752856187603,29.76,178.32,178.31,7.81315754]
[1752856188130,35.3679111,178.32,178.29,7.16315754]
[1752856188286,35.3679111,178.32,178.29,0.03]
[1752856188486,0.72,178.31,178.29,0.03]
[1752856188699,46.54468397,178.3,178.29,0.03]
[1752856188900,47.26468397,178.3,178.29,0.03]
[1752856189101,46.54468397,178.3,178.29,0.03]
[1752856189911,52.87320892,178.3,178.29,0.03]
[1752856190525,60.00636646,178.3,178.29,0.03]
[1752856190722,16.78468397,178.29,178.23,7.13315754]
[1752856190895,16.78468397,178.31,178.28,7.13315754]
[1752856191089,16.78468397,178.29,178.22,6.32102993]
[1752856191287,16.78468397,178.27,178.26,7.13315754]
[1752856191518,46.54468397,178.27,178.22,0.71]
[1752856191695,0.72,178.26,178.24,7.13315754]
[1752856192013,46.54468397,178.25,178.24,7.13315754]
[1752856192514,16.78468397,178.24,178.22,7.16315754]
[1752856192714,47.26468397,178.23,178.22,0.03]
[1752856193809,54.39784151,178.23,178.22,0.03]
[1752856194114,60.00856922,178.23,178.22,0.03]
[1752856195018,23.11541168,178.23,178.22,0.03]
[1752856195491,46.54468397,178.23,178.22,0.03]
[1752856195692,52.15541168,178.23,178.22,0.03]
[1752856196215,52.87541168,178.23,178.22,0.03]
[1752856196529,46.54468397,178.23,178.22,11.67395473]
[1752856196690,16.78468397,178.23,178.22,11.67395473]
[1752856196889,46.54468397,178.23,178.22,11.67395473]
[1752856199290,16.78468397,178.23,178.22,11.67395473]
[1752856199487,46.54468397,178.23,178.22,11.67395473]
[1752856200500,16.78468397,178.23,178.22,11.67395473]
[1752856200813,46.54468397,178.23,178.22,11.67395473]
[1752856201021,64.51936641,178.23,178.22,0.03]
[1752856201314,64.51936641,178.23,178.22,11.67395473]
[1752856201315,16.78468397,178.23,178.22,11.67395473]
[1752856201527,16.78468397,178.23,178.22,0.03]
[1752856201700,89.7,178.23,178.22,12.35395473]
[1752856202022,136.24468397,178.23,178.22,11.67395473]
[1752856202203,141.85541168,178.23,178.22,0.03]
[1752856202403,23.11541168,178.23,178.22,0.03]
[1752856202634,52.87541168,178.23,178.22,0.03]
[1752856203309,23.11541168,178.23,178.22,0.03]
[1752856203509,23.11541168,178.23,178.22,11.67395473]
[1752856203510,16.78468397,178.23,178.22,11.67395473]
[1752856203710,46.54468397,178.23,178.22,11.67395473]
[1752856203909,95.31013251,178.25,178.22,11.67395473]
[1752856204133,16.78468397,178.24,178.22,0.71]
[1752856204437,89.7,178.25,178.23,11.64395473]
[1752856204648,29.76,178.24,178.22,0.71]
[1752856204848,29.76,178.24,178.22,0.03]
[1752856205009,29.76,178.24,178.22,11.67395473]
[1752856205209,46.54468397,178.24,178.23,11.64395473]
[1752856205411,29.76,178.24,178.23,12.32395473]
[1752856207053,29.76,178.24,178.23,6.29072771]
[1752856207360,5.60856152,178.3,178.23,17.93468244]
[1752856207632,29.76,178.29,178.24,0.68]
[1752856207842,29.76,178.28,178.24,0.68]
[1752856208461,22.39291142,178.31,178.24,0.68]
[1752856208608,16.78468397,178.29,178.22,0.03]
[1752856208928,16.78468397,178.27,178.25,11.64395473]
[1752856209232,29.76,178.26,178.25,11.64395473]
[1752856210314,29.76,178.26,178.23,0.68]
[1752856210546,16.78468397,178.25,178.23,11.64395473]
[1752856210855,16.78468397,178.23,178.22,0.03]
[1752856211332,17.50468397,178.23,178.22,0.03]
[1752856211916,16.78468397,178.23,178.22,0.03]
[1752856212733,5.61044349,178.24,178.22,0.03]
[1752856212945,46.52468397,178.23,178.22,0.03]
[1752856213548,89.7,178.26,178.22,12.35395473]
[1752856213722,29.74,178.25,178.23,0.68]
[1752856213919,29.74,178.24,178.23,0.68]
[1752856214122,89.7,178.3,178.24,0.68]
[1752856214331,46.52468397,178.29,178.28,11.64395473]
[1752856214630,16.78468397,178.28,178.26,11.64395473]
[1752856214821,16.78468397,178.27,178.26,11.64395473]
[1752856215245,89.7,178.3,178.26,12.32395473]
[1752856215560,89.7,178.3,178.29,11.64395473]
[1752856215561,106.48468397,178.3,178.29,11.64395473]
[1752856215732,136.22468397,178.3,178.29,11.64395473]
[1752856215929,89.7,178.3,178.29,11.64395473]
[1752856216122,119.44,178.3,178.29,11.64395473]
[1752856216326,16.78468397,178.29,178.25,0.72]
[1752856216547,29.74,178.28,178.26,0.72]
[1752856216722,29.74,178.28,178.23,0.72]
[1752856216921,22.39359066,178.29,178.24,0.72]
[1752856217141,16.78468397,178.27,178.22,0.03]
[1752856217346,29.74,178.26,178.22,0.03]
[1752856217545,29.74,178.26,178.22,0.75]
[1752856217766,29.74,178.26,178.24,11.64395473]
[1752856218055,16.78468397,178.27,178.25,11.64395473]
[1752856218247,29.74,178.26,178.25,11.64395473]
[1752856218643,29.74,178.26,178.22,5.64101276]
[1752856218886,29.74,178.26,178.24,11.64395473]
[1752856219237,46.52468397,178.26,178.25,11.64395473]
[1752856219474,16.78468397,178.26,178.25,11.64395473]
[1752856219764,46.52468397,178.26,178.25,11.64395473]
[1752856220852,136.22468397,178.26,178.25,11.64395473]
[1752856221250,89.7,178.26,178.25,11.64395473]
[1752856221583,119.44,178.26,178.25,11.64395473]
[1752856222274,141.83446743,178.26,178.24,11.64395473]
[1752856222649,142.53446743,178.26,178.24,11.64395473]
[1752856223042,29.74,178.25,178.24,11.64395473]
[1752856223866,106.48468397,178.26,178.24,11.64395473]
[1752856224070,106.48468397,178.26,178.25,11.64395473]
[1752856224278,136.22468397,178.26,178.24,11.64395473]
[1752856225058,29.74,178.25,178.24,11.64395473]
[1752856225900,29.74,178.25,178.22,0.03]
[1752856226073,106.48468397,178.26,178.24,11.64395473]
[1752856226281,29.74,178.25,178.24,11.64395473]
[1752856227295,29.74,178.25,178.24,12.36395473]
[1752856227594,106.48468397,178.26,178.24,12.36395473]
[1752856227890,89.7,178.26,178.25,11.64395473]
[1752856228076,119.42,178.26,178.25,12.36395473]
[1752856228275,119.42,178.26,178.25,11.64395473]
[1752856228800,16.78468397,178.25,178.22,0.03]
[1752856229087,119.42,178.24,178.22,0.03]
[1752856229277,119.42,178.24,178.22,11.67395473]
[1752856229479,136.20468397,178.24,178.23,11.64395473]
[1752856229692,106.48468397,178.24,178.23,11.64395473]
[1752856229894,136.20468397,178.24,178.22,0.75]
[1752856230201,142.51514967,178.24,178.22,0.03]
[1752856230503,17.48468397,178.23,178.22,0.03]
[1752856230866,118.8286387,178.23,178.22,0.03]
[1752856231301,124.43936641,178.23,178.22,0.03]
[1752856232269,112.79541168,178.23,178.22,0.03]
[1752856232610,106.48468397,178.23,178.22,11.67395473]
[1752856232905,136.20468397,178.23,178.22,11.67395473]
[1752856233589,119.42,178.23,178.22,11.67395473]
[1752856233980,29.72,178.23,178.22,11.67395473]
[1752856234173,16.78468397,178.24,178.22,11.67395473]
[1752856234482,5.60978901,178.26,178.23,11.64395473]
[1752856234792,46.50468397,178.25,178.24,11.64395473]
[1752856235302,46.50468397,178.25,178.22,0.75]
[1752856235506,16.78468397,178.24,178.22,0.03]
[1752856235691,46.50468397,178.23,178.22,0.03]
[1752856235896,47.20468397,178.23,178.22,0.03]
[1752856236901,17.48468397,178.23,178.22,0.03]
[1752856237108,58.1486387,178.23,178.22,0.03]
[1752856237276,58.8486387,178.23,178.22,0.03]
[1752856237473,64.45936641,178.23,178.22,0.03]
[1752856237676,64.45936641,178.23,178.22,1e-08]
[1752856237981,52.81541168,178.23,178.22,1e-08]
[1752856238180,64.45936641,178.23,178.22,1e-08]
[1752856238707,52.81541168,178.23,178.22,1e-08]
[1752856239109,23.09541168,178.23,178.22,1e-08]
[1752856239403,52.81541168,178.23,178.22,1e-08]
[1752856239793,22.39541168,178.23,178.22,1e-08]
[1752856239974,52.11541168,178.23,178.22,1e-08]
[1752856240599,89.7,178.24,178.22,11.64395474]
[1752856240814,29.72,178.23,178.22,11.64395474]
[1752856241617,16.78468397,178.26,178.22,12.36395474]
[1752856241792,16.78468397,178.24,178.22,0.72000001]
[1752856241991,29.72,178.23,178.22,0.72000001]
[1752856242196,29.72,178.23,178.22,1e-08]
[1752856242397,29.72,178.23,178.22,0.72000001]
[1752856242938,29.72,178.23,178.22,12.36395474]
[1752856243220,16.78468397,178.24,178.22,11.64395474]
[1752856243536,16.78468397,178.24,178.23,11.64395473]
[1752856243738,47.20468397,178.24,178.22,11.64395474]
[1752856243891,17.48468397,178.23,178.22,1e-08]
[1752856244301,16.78468397,178.23,178.22,1e-08]
[1752856245012,22.39541168,178.23,178.22,1e-08]
[1752856247723,52.09541168,178.23,178.22,1e-08]
[1752856248110,30.80874233,178.27,178.22,11.64395474]
[1752856248428,16.78468397,178.25,178.23,11.64395473]
[1752856248604,46.48468397,178.24,178.23,11.64395473]
[1752856251641,16.78468397,178.26,178.23,12.32395473]
[1752856251814,5.60925514,178.28,178.25,11.64395473]
[1752856252129,46.48468397,178.27,178.26,11.64395473]
[1752856252309,46.48468397,178.27,178.25,11.64395473]
[1752856252632,47.17468397,178.27,178.24,11.64395473]
[1752856253302,16.78468397,178.25,178.22,1e-08]
[1752856253520,16.78468397,178.23,178.22,1e-08]
[1752856253730,28.4286387,178.23,178.22,1e-08]
[1752856253935,29.1186387,178.23,178.22,1e-08]
[1752856255446,34.72936641,178.23,178.22,1e-08]
[1752856256939,22.39541168,178.23,178.22,1e-08]
[1752856257143,0.69,178.25,178.22,11.64395474]
[1752856257341,46.48468397,178.24,178.22,11.64395474]
[1752856257642,46.48468397,178.23,178.22,11.64395474]
[1752856258329,52.09541168,178.23,178.22,11.64395474]
[1752856258640,52.09541168,178.23,178.22,1e-08]
[1752856259143,52.78541168,178.23,178.22,1e-08]
[1752856259337,64.42936641,178.23,178.22,1e-08]
[1752856260446,64.42936641,178.23,178.21,0.03]
[1752856260447,106.48468397,178.22,178.21,1e-08]
[1752856260629,107.17468397,178.22,178.21,1e-08]
[1752856260827,148.4986387,178.22,178.21,1e-08]
[1752856261345,106.48468397,178.22,178.21,1e-08]
[1752856261647,34.6217725,178.28,178.21,12.32395474]
[1752856261648,22.39446743,178.26,178.21,12.32395474]
[1752856261851,22.39446743,178.26,178.25,11.64395473]
[1752856262029,52.09446743,178.26,178.25,11.64395473]
[1752856262444,52.78446743,178.26,178.21,1e-08]
[1752856262767,16.78468397,178.24,178.21,1e-08]
[1752856263074,16.78468397,178.22,178.21,1e-08]
[1752856263370,46.46468397,178.22,178.21,1e-08]
[1752856263941,52.0757265,178.22,178.21,1e-08]
[1752856265050,22.3957265,178.22,178.21,1e-08]
[1752856265453,52.7657265,178.22,178.21,1e-08]
[1752856266371,64.40968123,178.22,178.21,1e-08]
[1752856266759,52.7657265,178.22,178.21,1e-08]
[1752856268358,52.0757265,178.22,178.21,1e-08]
[1752856269069,52.7657265,178.22,178.21,1e-08]
[1752856269268,64.40968123,178.22,178.21,1e-08]
[1752856270058,52.7657265,178.22,178.21,1e-08]
[1752856270760,22.3957265,178.22,178.21,1e-08]
[1752856270966,52.0757265,178.22,178.21,1e-08]
[1752856271893,22.3957265,178.22,178.21,1e-08]
[1752856272068,52.0757265,178.22,178.21,1e-08]
[1752856272268,5.61080111,178.23,178.21,1e-08]
[1752856272463,5.61080111,178.23,178.22,12.32395473]
[1752856272464,16.78468397,178.23,178.22,12.32395473]
[1752856272675,46.46468397,178.23,178.22,0.68]
[1752856272863,46.46468397,178.23,178.21,11.64395474]
[1752856273364,46.46468397,178.23,178.21,1e-08]
[1752856273660,0.69,178.22,178.21,1e-08]
[1752856273864,46.46468397,178.23,178.21,1e-08]
[1752856274292,5.61104253,178.22,178.21,1e-08]
[1752856274672,34.72968123,178.22,178.21,1e-08]
[1752856275185,16.78468397,178.21,178.2,1e-08]
[1752856275484,58.7986387,178.21,178.2,1e-08]
[1752856276079,42.78468397,178.19,178.18,1e-08]
[1752856276400,89.7206259,178.19,178.18,1e-08]
[1752856276572,78.78667117,178.19,178.18,1e-08]
[1752856276895,90.4306259,178.19,178.18,1e-08]
[1752856277476,78.78667117,178.19,178.18,1e-08]
[1752856277673,60.7506259,178.19,178.18,1e-08]
[1752856277890,90.4306259,178.19,178.18,1e-08]
[1752856278771,60.7506259,178.19,178.18,1e-08]
[1752856279074,49.10667117,178.19,178.18,1e-08]
[1752856279274,90.4306259,178.19,178.18,1e-08]
[1752856279681,48.39667117,178.19,178.18,1e-08]
[1752856279864,78.07667117,178.19,178.18,1e-08]
[1752856281489,46.46468397,178.19,178.18,12.35395474]
[1752856281992,16.78468397,178.19,178.18,12.35395474]
[1752856282189,46.46468397,178.19,178.18,12.35395474]
[1752856282976,5.61079911,178.23,178.18,12.35395474]
[1752856283297,42.78468397,178.23,178.22,11.64395473]
[1752856283493,72.44468397,178.23,178.22,11.64395473]
[1752856284107,162.14468397,178.23,178.22,11.64395473]
[1752856284612,162.14468397,178.23,178.21,11.64395473]
[1752856284780,17.49468397,178.22,178.18,1e-08]
[1752856284974,16.78468397,178.19,178.18,1e-08]
[1752856285175,46.44468397,178.19,178.18,1e-08]
[1752856285700,84.7986387,178.19,178.18,1e-08]
[1752856287200,94.83890449,178.19,178.18,1e-08]
[1752856288108,90.4106259,178.19,178.18,1e-08]
[1752856288708,60.7506259,178.19,178.18,1e-08]
[1752856288903,64.4106259,178.19,178.18,1e-08]
[1752856289110,68.80036655,178.19,178.18,1e-08]
[1752856289914,64.4106259,178.19,178.18,1e-08]
[1752856290130,52.76667117,178.19,178.18,1e-08]
[1752856290413,34.7506259,178.19,178.18,1e-08]
[1752856290777,64.4106259,178.19,178.18,1e-08]
[1752856292108,68.89736074,178.19,178.18,1e-08]
[1752856292495,64.4706259,178.19,178.18,1e-08]
[1752856292929,22.45667117,178.19,178.18,1e-08]
[1752856293389,78.11667117,178.19,178.18,12.35395474]
[1752856293780,72.50468397,178.19,178.18,12.35395474]
[1752856294388,46.50468397,178.19,178.18,12.35395474]
[1752856295016,16.84468397,178.19,178.18,12.35395474]
[1752856295325,78.82667117,178.19,178.18,1e-08]
[1752856295498,78.11667117,178.19,178.18,1e-08]
[1752856295889,48.45667117,178.19,178.18,1e-08]
[1752856296121,78.11667117,178.19,178.18,1e-08]
[1752856296312,78.82667117,178.19,178.18,1e-08]
[1752856296482,90.4706259,178.19,178.18,1e-08]
[1752856296690,64.4706259,178.19,178.18,1e-08]
[1752856297611,52.11667117,178.19,178.18,1e-08]
[1752856297988,64.4706259,178.19,178.18,1e-08]
[1752856302219,23.16667117,178.19,178.18,1e-08]
[1752856302393,52.82667117,178.19,178.18,1e-08]
[1752856302719,64.4706259,178.19,178.18,1e-08]
[1752856303286,132.48468396,178.17,178.16,0.03]
[1752856303493,84.0686387,178.17,178.16,0.03]
[1752856303802,72.42468397,178.17,178.16,0.03]
[1752856303982,78.03730113,178.17,178.16,0.03]
[1752856304903,90.39125586,178.17,178.16,0.03]
[1752856305890,90.39125586,178.17,178.16,1e-08]
[1752856306126,16.78468397,178.16,178.14,0.03]
[1752856306296,58.0686387,178.15,178.14,0.03]
[1752856306495,58.7286387,178.15,178.14,0.03]
[1752856308318,34.70188596,178.15,178.14,0.03]
[1752856308625,52.69793123,178.15,178.14,0.03]
[1752856308829,64.34188596,178.15,178.14,0.03]
[1752856309325,34.04188596,178.15,178.14,0.03]
[1752856309616,22.39793123,178.15,178.14,0.03]
[1752856309920,63.68188596,178.15,178.14,0.03]
[1752856310413,52.03793123,178.15,178.14,0.03]
[1752856310821,22.39793123,178.15,178.14,0.03]
[1752856311118,52.03793123,178.15,178.14,0.72]
[1752856311320,16.78468397,178.15,178.14,12.36395473]
[1752856311621,46.42468397,178.15,178.14,0.72]
[1752856311816,52.03793123,178.15,178.14,0.03]
[1752856312518,52.69793123,178.15,178.14,0.03]
[1752856312825,64.34188596,178.15,178.14,0.03]
[1752856313220,52.69793123,178.15,178.14,0.03]
[1752856313421,64.34188596,178.15,178.14,0.03]
[1752856313930,52.69793123,178.15,178.14,0.03]
[1752856314095,52.75793123,178.15,178.14,0.03]
[1752856314296,52.09793123,178.15,178.14,0.03]
[1752856315200,64.40188596,178.15,178.14,0.03]
[1752856315413,63.74188596,178.15,178.14,0.03]
[1752856315717,52.09793123,178.15,178.14,0.03]
[1752856317204,59.90744899,178.15,178.14,0.03]
[1752856318121,59.24744899,178.15,178.14,0.03]
[1752856318328,52.09793123,178.15,178.14,0.03]
[1752856319912,59.90744899,178.15,178.14,0.03]
[1752856320530,59.24744899,178.15,178.14,0.03]
[1752856320730,22.45793123,178.15,178.14,0.03]
[1752856321033,52.09793123,178.15,178.14,0.03]
[1752856322823,59.90744899,178.15,178.14,0.03]
[1752856323029,52.75793123,178.15,178.14,0.03]
[1752856323229,59.90744899,178.15,178.14,0.03]
[1752856323727,59.90744899,178.15,178.14,1e-08]
[1752856324926,52.75793123,178.15,178.14,1e-08]
[1752856325330,30.26744899,178.15,178.14,1e-08]